[Event "*** Titled Tuesday Blitz"]
[Site "Chess.com"]
[Date "2019.06.04"]
[Round "6"]
[White "FERNANDEZL1983"]
[Black "KRASAVCHIK2002"]
[Result "1-0"]
[WhiteElo "2447"]
[BlackElo "2299"]
[TimeControl "180+2"]
[EndTime "14:12:28 PDT"]
[Termination "FERNANDEZL1983 won by resignation"]

1. d4 {[%clk 0:02:59.3]} 1... Nf6 {[%clk 0:02:59.8]} 2. c4 {[%clk 0:03:00]} 2...
c5 {[%clk 0:03:01.7]} 3. dxc5 {[%clk 0:02:59.1]} 3... e5 {[%clk 0:02:59.4]} 4.
Nc3 {[%clk 0:02:57.9]} 4... Bxc5 {[%clk 0:03:00.3]} 5. e3 {[%clk 0:02:58.4]}
5... O-O {[%clk 0:02:59.6]} 6. a3 {[%clk 0:02:58.5]} 6... b6 {[%clk 0:02:50.4]}
7. Nf3 {[%clk 0:02:56.2]} 7... Re8 {[%clk 0:02:46.2]} 8. Be2 {[%clk 0:02:55.6]}
8... Bb7 {[%clk 0:02:46.7]} 9. O-O {[%clk 0:02:55.7]} 9... d5 {[%clk 0:02:47.9]}
10. b4 {[%clk 0:02:53.7]} 10... Bf8 {[%clk 0:02:48]} 11. Bb2 {[%clk 0:02:54.3]}
11... dxc4 {[%clk 0:02:41.8]} 12. Qxd8 {[%clk 0:02:52.7]} 12... Rxd8 {[%clk
0:02:42.5]} 13. Nxe5 {[%clk 0:02:46.7]} 13... Rd2 {[%clk 0:02:42.6]} 14. Nxc4
{[%clk 0:02:47]} 1-0

[Event "*** Titled Tuesday Blitz"]
[Site "Chess.com"]
[Date "2019.06.04"]
[Round "6"]
[White "savinspm"]
[Black "BillForster"]
[Result "0-1"]
[WhiteElo "2035"]
[BlackElo "1763"]
[TimeControl "180+2"]
[EndTime "14:13:59 PDT"]
[Termination "BillForster won by resignation"]

1. e4 {[%clk 0:03:01.9]} 1... c5 {[%clk 0:02:59.4]} 2. Nc3 {[%clk 0:03:02.2]}
2... a6 {[%clk 0:02:59.6]} 3. g3 {[%clk 0:03:03.5]} 3... b5 {[%clk 0:03:00.4]}
4. Bg2 {[%clk 0:03:03]} 4... Bb7 {[%clk 0:03:01.2]} 5. d3 {[%clk 0:03:03.2]}
5... e6 {[%clk 0:02:59.3]} 6. a4 {[%clk 0:03:04.4]} 6... Qb6 {[%clk 0:02:43.2]}
7. axb5 {[%clk 0:03:03.6]} 7... axb5 {[%clk 0:02:42.9]} 8. Rxa8 {[%clk 0:03:05]}
8... Bxa8 {[%clk 0:02:43.6]} 9. Be3 {[%clk 0:02:58.5]} 9... Nf6 {[%clk
0:02:38.2]} 10. h3 {[%clk 0:02:57.7]} 10... Be7 {[%clk 0:02:29.9]} 11. Nge2
{[%clk 0:02:57.5]} 11... O-O {[%clk 0:02:25.4]} 12. O-O {[%clk 0:02:58.4]} 12...
Nc6 {[%clk 0:02:21.8]} 13. d4 {[%clk 0:02:56]} 13... d6 {[%clk 0:01:59.7]} 14.
d5 {[%clk 0:02:51.6]} 14... exd5 {[%clk 0:01:55.5]} 15. Nxd5 {[%clk 0:02:52.3]}
15... Nxd5 {[%clk 0:01:55]} 16. exd5 {[%clk 0:02:54.2]} 16... Ne5 {[%clk
0:01:48.9]} 17. b3 {[%clk 0:02:55.3]} 17... Bb7 {[%clk 0:01:42.6]} 18. Qa1
{[%clk 0:02:44.2]} 18... Ra8 {[%clk 0:01:41.8]} 19. Qc3 {[%clk 0:02:45.2]} 19...
Bf6 {[%clk 0:01:40.5]} 20. Qd3 {[%clk 0:02:37.9]} 20... Nxd3 {[%clk 0:01:40.3]}
21. cxd3 {[%clk 0:02:39.8]} 0-1

[Event "*** Titled Tuesday Blitz"]
[Site "Chess.com"]
[Date "2019.06.04"]
[Round "6"]
[White "dcremisi"]
[Black "hellokostya"]
[Result "0-1"]
[WhiteElo "2274"]
[BlackElo "2530"]
[TimeControl "180+2"]
[EndTime "14:14:08 PDT"]
[Termination "hellokostya won by resignation"]

1. d4 {[%clk 0:03:01.9]} 1... Nf6 {[%clk 0:02:58.9]} 2. c4 {[%clk 0:03:03.1]}
2... g6 {[%clk 0:03:00]} 3. Nc3 {[%clk 0:03:03.2]} 3... Bg7 {[%clk 0:03:01.4]}
4. e4 {[%clk 0:03:04.1]} 4... d6 {[%clk 0:03:03]} 5. Nf3 {[%clk 0:03:05.2]} 5...
O-O {[%clk 0:03:04.3]} 6. Be2 {[%clk 0:03:06.8]} 6... Na6 {[%clk 0:03:03.6]} 7.
O-O {[%clk 0:03:07.5]} 7... e5 {[%clk 0:03:04.1]} 8. dxe5 {[%clk 0:03:07.8]}
8... dxe5 {[%clk 0:03:04.3]} 9. Qxd8 {[%clk 0:03:09]} 9... Rxd8 {[%clk
0:03:05.4]} 10. Bg5 {[%clk 0:03:00.6]} 10... h6 {[%clk 0:02:50]} 11. Bh4 {[%clk
0:03:00.6]} 11... Re8 {[%clk 0:02:46.5]} 12. Rfd1 {[%clk 0:02:54.7]} 12... c6
{[%clk 0:02:43.3]} 13. Rd6 {[%clk 0:02:43.5]} 13... Nh5 {[%clk 0:02:36.7]} 14.
Rad1 {[%clk 0:02:37.9]} 14... g5 {[%clk 0:02:33.7]} 15. Bg3 {[%clk 0:02:38.5]}
15... Nf4 {[%clk 0:02:34.7]} 16. Bf1 {[%clk 0:02:34.8]} 16... Be6 {[%clk
0:02:28]} 17. b3 {[%clk 0:02:35.5]} 17... Bf8 {[%clk 0:02:23.6]} 18. R6d2 {[%clk
0:02:32.8]} 18... f6 {[%clk 0:02:21.2]} 19. Bxf4 {[%clk 0:02:27.2]} 19... gxf4
{[%clk 0:02:22.7]} 20. Nh4 {[%clk 0:02:26.7]} 20... Bb4 {[%clk 0:02:21]} 21. Rc2
{[%clk 0:02:27.4]} 21... Rad8 {[%clk 0:02:21]} 22. Rxd8 {[%clk 0:02:27.1]} 22...
Rxd8 {[%clk 0:02:22.9]} 23. Be2 {[%clk 0:02:27.8]} 23... Nc5 {[%clk 0:02:16.7]}
24. f3 {[%clk 0:02:24.9]} 24... Bxc3 {[%clk 0:02:14.9]} 25. Rxc3 {[%clk
0:02:26.2]} 25... Rd2 {[%clk 0:02:16.2]} 26. Kf1 {[%clk 0:02:25.8]} 26... Rxa2
{[%clk 0:02:15.2]} 27. Ng6 {[%clk 0:02:27.2]} 27... Kf7 {[%clk 0:02:14.6]} 28.
Nh4 {[%clk 0:02:27.6]} 28... a5 {[%clk 0:02:14.7]} 29. Rc1 {[%clk 0:02:26.5]}
29... Nxb3 {[%clk 0:02:13]} 0-1

[Event "*** Titled Tuesday Blitz"]
[Site "Chess.com"]
[Date "2019.06.04"]
[Round "6"]
[White "KhazarBabazada"]
[Black "Manukyan_Artak"]
[Result "1-0"]
[WhiteElo "2600"]
[BlackElo "2403"]
[TimeControl "180+2"]
[EndTime "14:14:32 PDT"]
[Termination "KhazarBabazada won by checkmate"]

1. Nf3 {[%clk 0:03:01.9]} 1... d5 {[%clk 0:03:00.7]} 2. g3 {[%clk 0:03:03.1]}
2... c6 {[%clk 0:03:02.1]} 3. Bg2 {[%clk 0:03:03.2]} 3... Bg4 {[%clk 0:03:03.6]}
4. O-O {[%clk 0:03:04.4]} 4... Nd7 {[%clk 0:03:04.8]} 5. b3 {[%clk 0:03:05.8]}
5... Ngf6 {[%clk 0:03:05.2]} 6. Bb2 {[%clk 0:03:07]} 6... e6 {[%clk 0:03:05.9]}
7. d3 {[%clk 0:03:08.4]} 7... Be7 {[%clk 0:03:06.5]} 8. Nbd2 {[%clk 0:03:09.6]}
8... O-O {[%clk 0:03:07.5]} 9. e4 {[%clk 0:03:10.9]} 9... b5 {[%clk 0:03:06.7]}
10. Qe2 {[%clk 0:03:11.5]} 10... a5 {[%clk 0:03:06.7]} 11. h3 {[%clk 0:03:11.8]}
11... Bxf3 {[%clk 0:03:05.2]} 12. Bxf3 {[%clk 0:03:09.7]} 12... a4 {[%clk
0:03:05.7]} 13. e5 {[%clk 0:03:00.8]} 13... Ne8 {[%clk 0:03:06]} 14. Bg2 {[%clk
0:02:53.9]} 14... g6 {[%clk 0:03:02.8]} 15. f4 {[%clk 0:02:54]} 15... Ng7 {[%clk
0:03:00.7]} 16. g4 {[%clk 0:02:55]} 16... Qb6+ {[%clk 0:02:47.4]} 17. Kh1 {[%clk
0:02:55.5]} 17... axb3 {[%clk 0:02:48.7]} 18. axb3 {[%clk 0:02:55.5]} 18... Qb7
{[%clk 0:02:43.7]} 19. f5 {[%clk 0:02:51.3]} 19... exf5 {[%clk 0:02:44.2]} 20.
gxf5 {[%clk 0:02:52.2]} 20... Nxf5 {[%clk 0:02:44]} 21. Rxf5 {[%clk 0:02:53.1]}
21... Rxa1+ {[%clk 0:02:43.1]} 22. Bxa1 {[%clk 0:02:55]} 22... gxf5 {[%clk
0:02:44.3]} 23. e6 {[%clk 0:02:50.8]} 23... Nf6 {[%clk 0:02:41.1]} 24. Nf3
{[%clk 0:02:49.3]} 24... fxe6 {[%clk 0:02:26.9]} 25. Qxe6+ {[%clk 0:02:51.2]}
25... Kg7 {[%clk 0:02:28.1]} 26. Nh4 {[%clk 0:02:46.6]} 26... Rf7 {[%clk
0:02:14.1]} 27. Nxf5+ {[%clk 0:02:45.2]} 27... Kf8 {[%clk 0:02:15.3]} 28. Nh6
{[%clk 0:02:28]} 28... Qd7 {[%clk 0:02:00.6]} 29. Qxf7# {[%clk 0:02:26.8]} 1-0

[Event "*** Titled Tuesday Blitz"]
[Site "Chess.com"]
[Date "2019.06.04"]
[Round "6"]
[White "Filip_Covic"]
[Black "Haykos"]
[Result "1-0"]
[WhiteElo "2368"]
[BlackElo "2538"]
[TimeControl "180+2"]
[EndTime "14:15:00 PDT"]
[Termination "Filip_Covic won by resignation"]

1. d4 {[%clk 0:03:01.9]} 1... d5 {[%clk 0:03:01]} 2. Nf3 {[%clk 0:03:02]} 2...
Nf6 {[%clk 0:03:01.8]} 3. Bf4 {[%clk 0:03:00.5]} 3... c5 {[%clk 0:03:01]} 4. e3
{[%clk 0:03:00.8]} 4... Nc6 {[%clk 0:03:02.4]} 5. Nbd2 {[%clk 0:03:00.5]} 5...
cxd4 {[%clk 0:03:02.1]} 6. exd4 {[%clk 0:03:00.7]} 6... Bg4 {[%clk 0:03:04]} 7.
Be2 {[%clk 0:02:59.8]} 7... e6 {[%clk 0:03:05.5]} 8. O-O {[%clk 0:02:59.7]} 8...
Bd6 {[%clk 0:03:05.6]} 9. Bxd6 {[%clk 0:02:52.6]} 9... Qxd6 {[%clk 0:03:07.5]}
10. c3 {[%clk 0:02:52.7]} 10... O-O {[%clk 0:03:08.4]} 11. Ne5 {[%clk
0:02:50.3]} 11... Bxe2 {[%clk 0:03:09]} 12. Qxe2 {[%clk 0:02:52.2]} 12... a6
{[%clk 0:03:09.9]} 13. f4 {[%clk 0:02:46.2]} 13... Nd7 {[%clk 0:03:05.4]} 14.
Rae1 {[%clk 0:02:42.9]} 14... b5 {[%clk 0:03:05.9]} 15. Nb3 {[%clk 0:02:40.4]}
15... Rab8 {[%clk 0:02:46.6]} 16. Rf3 {[%clk 0:02:37.7]} 16... Rfe8 {[%clk
0:02:27.5]} 17. Rh3 {[%clk 0:02:34.8]} 17... f5 {[%clk 0:02:26.6]} 18. Rxh7
{[%clk 0:02:21.1]} 18... Kxh7 {[%clk 0:02:23]} 19. Qh5+ {[%clk 0:02:19.6]} 19...
Kg8 {[%clk 0:02:22.8]} 20. Qf7+ {[%clk 0:02:18.2]} 20... Kh7 {[%clk 0:02:24]}
21. Re3 {[%clk 0:02:14.6]} 1-0

[Event "*** Titled Tuesday Blitz"]
[Site "Chess.com"]
[Date "2019.06.04"]
[Round "6"]
[White "2165149677570"]
[Black "jamengrand"]
[Result "0-1"]
[WhiteElo "2221"]
[BlackElo "2128"]
[TimeControl "180+2"]
[EndTime "14:15:02 PDT"]
[Termination "jamengrand won by checkmate"]

1. e4 {[%clk 0:03:01.9]} 1... c5 {[%clk 0:03:00.6]} 2. Nf3 {[%clk 0:03:03.2]}
2... Nc6 {[%clk 0:03:01.6]} 3. Bb5 {[%clk 0:03:04.4]} 3... e6 {[%clk 0:03:01.1]}
4. Nc3 {[%clk 0:02:57.7]} 4... Nd4 {[%clk 0:03:00.5]} 5. Nxd4 {[%clk 0:02:47.4]}
5... cxd4 {[%clk 0:03:01]} 6. Ne2 {[%clk 0:02:49]} 6... Bc5 {[%clk 0:02:54.4]}
7. d3 {[%clk 0:02:22.3]} 7... Qa5+ {[%clk 0:02:53.1]} 8. c3 {[%clk 0:02:09.9]}
8... Qxb5 {[%clk 0:02:54.1]} 9. cxd4 {[%clk 0:02:11.3]} 9... Bxd4 {[%clk
0:02:47.6]} 10. Nxd4 {[%clk 0:02:00.9]} 10... Qb4+ {[%clk 0:02:48.3]} 11. Ke2
{[%clk 0:02:02.8]} 11... Qxd4 {[%clk 0:02:48.9]} 12. Be3 {[%clk 0:02:04.7]}
12... Qxb2+ {[%clk 0:02:49.1]} 13. Kf3 {[%clk 0:02:06.3]} 13... b6 {[%clk
0:02:29.8]} 14. Rc1 {[%clk 0:02:05.5]} 14... Bb7 {[%clk 0:02:27.3]} 15. g4
{[%clk 0:02:02.8]} 15... f5 {[%clk 0:02:27.4]} 16. gxf5 {[%clk 0:02:02.5]} 16...
exf5 {[%clk 0:02:27.1]} 17. Kg3 {[%clk 0:01:57.6]} 17... Nf6 {[%clk 0:02:21.6]}
18. exf5 {[%clk 0:01:49.6]} 18... O-O {[%clk 0:02:18.5]} 19. Re1 {[%clk
0:01:44.5]} 19... Rae8 {[%clk 0:02:10.5]} 20. Qa4 {[%clk 0:01:39.1]} 20... Qe5+
{[%clk 0:02:08.6]} 21. Bf4 {[%clk 0:01:31.6]} 21... Qxf5 {[%clk 0:02:09.6]} 22.
Rxe8 {[%clk 0:01:14.2]} 22... Qg4# {[%clk 0:02:09.3]} 0-1

[Event "*** Titled Tuesday Blitz"]
[Site "Chess.com"]
[Date "2019.06.04"]
[Round "6"]
[White "MathiasWomacka"]
[Black "quesfr"]
[Result "1-0"]
[WhiteElo "2302"]
[BlackElo "2167"]
[TimeControl "180+2"]
[EndTime "14:15:06 PDT"]
[Termination "MathiasWomacka won by resignation"]

1. e4 {[%clk 0:03:01.9]} 1... e5 {[%clk 0:03:00.6]} 2. Nf3 {[%clk 0:03:02]} 2...
Nc6 {[%clk 0:03:00.7]} 3. Bb5 {[%clk 0:03:02.7]} 3... a6 {[%clk 0:03:00.7]} 4.
Bxc6 {[%clk 0:03:03.8]} 4... dxc6 {[%clk 0:03:02.6]} 5. O-O {[%clk 0:03:04.9]}
5... Bg4 {[%clk 0:02:58.8]} 6. h3 {[%clk 0:03:05.3]} 6... h5 {[%clk 0:02:38.3]}
7. d3 {[%clk 0:03:03.5]} 7... Qf6 {[%clk 0:02:24.5]} 8. Nbd2 {[%clk 0:03:04.3]}
8... g5 {[%clk 0:02:18.1]} 9. Nc4 {[%clk 0:03:03.4]} 9... Bxf3 {[%clk
0:02:15.4]} 10. Qxf3 {[%clk 0:03:05.3]} 10... Qxf3 {[%clk 0:02:14.4]} 11. gxf3
{[%clk 0:03:07.2]} 11... f6 {[%clk 0:02:12.4]} 12. h4 {[%clk 0:03:07.7]} 12...
gxh4 {[%clk 0:01:35.4]} 13. f4 {[%clk 0:03:08.5]} 13... Bd6 {[%clk 0:01:24.1]}
14. fxe5 {[%clk 0:03:05.5]} 14... fxe5 {[%clk 0:01:24.7]} 15. f4 {[%clk
0:03:03.5]} 15... exf4 {[%clk 0:01:02]} 16. Bxf4 {[%clk 0:02:56.2]} 16... Kd7
{[%clk 0:00:30.6]} 17. Bxd6 {[%clk 0:02:50.5]} 17... cxd6 {[%clk 0:00:29.9]} 18.
Nb6+ {[%clk 0:02:48.3]} 1-0

[Event "*** Titled Tuesday Blitz"]
[Site "Chess.com"]
[Date "2019.06.04"]
[Round "6"]
[White "penguingm1"]
[Black "Korchmar_Vasiliy"]
[Result "1-0"]
[WhiteElo "2920"]
[BlackElo "2785"]
[TimeControl "180+2"]
[EndTime "14:15:19 PDT"]
[Termination "penguingm1 won by resignation"]

1. d4 {[%clk 0:03:01.9]} 1... d5 {[%clk 0:03:00.7]} 2. Bf4 {[%clk 0:03:03]} 2...
c5 {[%clk 0:03:01.4]} 3. e3 {[%clk 0:03:04.4]} 3... Nf6 {[%clk 0:03:02.3]} 4.
dxc5 {[%clk 0:03:00.8]} 4... e6 {[%clk 0:03:02.2]} 5. b4 {[%clk 0:03:01.3]} 5...
a5 {[%clk 0:03:02.8]} 6. c3 {[%clk 0:03:02.5]} 6... axb4 {[%clk 0:02:40.4]} 7.
cxb4 {[%clk 0:02:58.4]} 7... Nc6 {[%clk 0:02:41.8]} 8. Bb5 {[%clk 0:02:47.1]}
8... Bd7 {[%clk 0:02:42.4]} 9. Qb3 {[%clk 0:02:48.1]} 9... Ne4 {[%clk
0:02:34.4]} 10. Ne2 {[%clk 0:02:29.5]} 10... Qf6 {[%clk 0:02:32.9]} 11. Nbc3
{[%clk 0:02:29.9]} 11... g5 {[%clk 0:02:19.2]} 12. Bg3 {[%clk 0:02:24.8]} 12...
h5 {[%clk 0:02:20.5]} 13. Rd1 {[%clk 0:02:07.9]} 13... Nxc3 {[%clk 0:02:12.3]}
14. Nxc3 {[%clk 0:02:08.7]} 14... h4 {[%clk 0:02:13.8]} 15. Bc7 {[%clk
0:02:10.1]} 15... Bg7 {[%clk 0:02:09.9]} 16. Na4 {[%clk 0:02:08.9]} 16... O-O
{[%clk 0:02:03.4]} 17. Nb6 {[%clk 0:02:09.4]} 17... Rad8 {[%clk 0:01:47]} 18.
Bxd8 {[%clk 0:02:07]} 18... Rxd8 {[%clk 0:01:48.9]} 19. Nxd7 {[%clk 0:01:58.5]}
19... Rxd7 {[%clk 0:01:50.8]} 20. h3 {[%clk 0:02:00.2]} 20... Qg6 {[%clk
0:01:36.9]} 21. Bxc6 {[%clk 0:01:52.6]} 21... bxc6 {[%clk 0:01:38.8]} 22. Qd3
{[%clk 0:01:53.9]} 22... f5 {[%clk 0:01:34.9]} 23. b5 {[%clk 0:01:52.9]} 23...
cxb5 {[%clk 0:01:27.1]} 24. Qxb5 {[%clk 0:01:54.8]} 24... Bc3+ {[%clk
0:01:28.2]} 25. Ke2 {[%clk 0:01:55.7]} 25... Rc7 {[%clk 0:01:26.1]} 26. Qb8+
{[%clk 0:01:56.8]} 1-0

[Event "*** Titled Tuesday Blitz"]
[Site "Chess.com"]
[Date "2019.06.04"]
[Round "6"]
[White "Drags95"]
[Black "Alexander_Donchenko"]
[Result "1/2-1/2"]
[WhiteElo "2787"]
[BlackElo "2754"]
[TimeControl "180+2"]
[EndTime "14:15:20 PDT"]
[Termination "Game drawn by agreement"]

1. e4 {[%clk 0:03:01.9]} 1... e5 {[%clk 0:03:00.3]} 2. Nf3 {[%clk 0:03:03.1]}
2... Nf6 {[%clk 0:03:01.3]} 3. Nxe5 {[%clk 0:03:02.7]} 3... d6 {[%clk
0:03:02.7]} 4. Nf3 {[%clk 0:03:04]} 4... Nxe4 {[%clk 0:03:04.1]} 5. Nc3 {[%clk
0:03:05.6]} 5... Nxc3 {[%clk 0:03:05.3]} 6. dxc3 {[%clk 0:03:07.5]} 6... Be7
{[%clk 0:03:06.6]} 7. Bf4 {[%clk 0:03:03.7]} 7... Be6 {[%clk 0:03:07.1]} 8. Qd2
{[%clk 0:03:04.4]} 8... Nc6 {[%clk 0:03:08.3]} 9. O-O-O {[%clk 0:03:04.6]} 9...
Qd7 {[%clk 0:03:09.7]} 10. h4 {[%clk 0:03:05.4]} 10... h6 {[%clk 0:03:08.9]} 11.
Nd4 {[%clk 0:03:00.7]} 11... Nxd4 {[%clk 0:03:08.1]} 12. cxd4 {[%clk 0:03:02.6]}
12... d5 {[%clk 0:03:05.9]} 13. Qa5 {[%clk 0:02:49.9]} 13... c6 {[%clk
0:02:58.4]} 14. f3 {[%clk 0:02:50.9]} 14... O-O {[%clk 0:02:51.9]} 15. g4 {[%clk
0:02:51.1]} 15... Bd6 {[%clk 0:02:43.1]} 16. Qd2 {[%clk 0:02:51.9]} 16... Qc7
{[%clk 0:02:43]} 17. Bxd6 {[%clk 0:02:48.4]} 17... Qxd6 {[%clk 0:02:44.9]} 18.
Bd3 {[%clk 0:02:49.3]} 18... Rae8 {[%clk 0:02:42.5]} 19. Rhg1 {[%clk 0:02:43.7]}
19... Bd7 {[%clk 0:02:29.2]} 20. f4 {[%clk 0:02:43.9]} 20... Qe7 {[%clk
0:02:27.7]} 21. g5 {[%clk 0:02:42.7]} 21... hxg5 {[%clk 0:02:28.7]} 22. fxg5
{[%clk 0:02:28.9]} 22... Qe3 {[%clk 0:02:26.3]} 23. Rde1 {[%clk 0:02:28.9]}
23... Qxd2+ {[%clk 0:02:23.6]} 24. Kxd2 {[%clk 0:02:30.8]} 24... g6 {[%clk
0:02:21.3]} 25. Rxe8 {[%clk 0:02:27.7]} 25... Rxe8 {[%clk 0:02:21.9]} 26. Re1
{[%clk 0:02:28.9]} 26... Rxe1 {[%clk 0:02:19]} 27. Kxe1 {[%clk 0:02:30.8]} 27...
Kf8 {[%clk 0:02:19.9]} 28. c4 {[%clk 0:02:27.5]} 28... dxc4 {[%clk 0:02:16.8]}
29. Bxc4 {[%clk 0:02:28.7]} 29... Ke7 {[%clk 0:02:18.5]} 30. a3 {[%clk 0:02:23]}
30... Be6 {[%clk 0:02:19.4]} 31. Bd3 {[%clk 0:02:22.3]} 31... Kd6 {[%clk
0:02:16.5]} 32. Kd2 {[%clk 0:02:23.5]} 32... c5 {[%clk 0:02:15.2]} 33. Ke3
{[%clk 0:02:23.4]} 33... b6 {[%clk 0:02:11.7]} 34. dxc5+ {[%clk 0:02:22.4]}
34... Kxc5 {[%clk 0:02:12.2]} 35. Be2 {[%clk 0:02:20.2]} 35... Kd5 {[%clk
0:02:11.2]} 36. Ba6 {[%clk 0:02:16.2]} 36... Ke5 {[%clk 0:02:10.8]} 37. Bd3
{[%clk 0:02:14.8]} 37... Bd5 {[%clk 0:02:10.2]} 1/2-1/2

[Event "*** Titled Tuesday Blitz"]
[Site "Chess.com"]
[Date "2019.06.04"]
[Round "6"]
[White "mitrabhaa"]
[Black "Zq1"]
[Result "0-1"]
[WhiteElo "2683"]
[BlackElo "2528"]
[TimeControl "180+2"]
[EndTime "14:15:21 PDT"]
[Termination "Zq1 won by resignation"]

1. Nf3 {[%clk 0:02:59.3]} 1... d5 {[%clk 0:03:00.4]} 2. b3 {[%clk 0:03:01]} 2...
c5 {[%clk 0:02:57.2]} 3. Bb2 {[%clk 0:03:02.4]} 3... f6 {[%clk 0:02:57.6]} 4. d3
{[%clk 0:02:58]} 4... e5 {[%clk 0:02:58.2]} 5. Nbd2 {[%clk 0:02:58.9]} 5... Nc6
{[%clk 0:02:58.6]} 6. g3 {[%clk 0:03:00.4]} 6... Be6 {[%clk 0:02:58.3]} 7. Bg2
{[%clk 0:03:01.9]} 7... Nh6 {[%clk 0:02:56.6]} 8. O-O {[%clk 0:03:03.2]} 8...
Nf7 {[%clk 0:02:56.7]} 9. a3 {[%clk 0:03:03.7]} 9... Be7 {[%clk 0:02:57]} 10. c4
{[%clk 0:03:05]} 10... d4 {[%clk 0:02:55.5]} 11. Ne1 {[%clk 0:03:05.9]} 11... a5
{[%clk 0:02:54.7]} 12. Nc2 {[%clk 0:03:06.9]} 12... O-O {[%clk 0:02:55]} 13. Qb1
{[%clk 0:03:07.7]} 13... Qd7 {[%clk 0:02:50.8]} 14. Rd1 {[%clk 0:03:08.5]} 14...
Rab8 {[%clk 0:02:48.5]} 15. Nf1 {[%clk 0:03:06.6]} 15... b5 {[%clk 0:02:44.7]}
16. Qa2 {[%clk 0:02:57.6]} 16... a4 {[%clk 0:02:32.1]} 17. bxa4 {[%clk 0:02:41]}
17... bxc4 {[%clk 0:02:31]} 18. dxc4 {[%clk 0:02:42]} 18... Na5 {[%clk
0:02:25.2]} 19. Nd2 {[%clk 0:02:42.8]} 19... Nd6 {[%clk 0:02:20.7]} 20. Rac1
{[%clk 0:02:40.2]} 20... Ndxc4 {[%clk 0:02:13.1]} 21. Nxc4 {[%clk 0:02:10.3]}
21... Bxc4 {[%clk 0:01:55.3]} 22. Qa1 {[%clk 0:02:03]} 22... Nb3 {[%clk
0:01:51.5]} 23. Qa2 {[%clk 0:02:03.6]} 23... Bf7 {[%clk 0:01:49.3]} 24. Rb1
{[%clk 0:01:53.7]} 24... Nd2 {[%clk 0:01:47.7]} 25. Qa1 {[%clk 0:01:54.4]} 25...
Nxb1 {[%clk 0:01:47.6]} 26. Rxb1 {[%clk 0:01:55.5]} 26... Qxa4 {[%clk
0:01:47.8]} 27. Ne1 {[%clk 0:01:54.2]} 27... c4 {[%clk 0:01:47.4]} 0-1

[Event "*** Titled Tuesday Blitz"]
[Site "Chess.com"]
[Date "2019.06.04"]
[Round "6"]
[White "PaulfromSPb"]
[Black "SloLev"]
[Result "1-0"]
[WhiteElo "2665"]
[BlackElo "2497"]
[TimeControl "180+2"]
[EndTime "14:15:47 PDT"]
[Termination "PaulfromSPb won by resignation"]

1. e4 {[%clk 0:02:59.8]} 1... e5 {[%clk 0:02:58.9]} 2. Nf3 {[%clk 0:03:00.6]}
2... Nc6 {[%clk 0:02:53.7]} 3. Bc4 {[%clk 0:02:59.8]} 3... Bc5 {[%clk
0:02:52.4]} 4. c3 {[%clk 0:03:00.4]} 4... d6 {[%clk 0:02:48.5]} 5. d4 {[%clk
0:02:57.6]} 5... exd4 {[%clk 0:02:44.1]} 6. cxd4 {[%clk 0:02:58.5]} 6... Bb4+
{[%clk 0:02:45.6]} 7. Nc3 {[%clk 0:02:59]} 7... Nf6 {[%clk 0:02:45.4]} 8. Qb3
{[%clk 0:02:43.3]} 8... O-O {[%clk 0:02:42]} 9. Bg5 {[%clk 0:02:43.8]} 9... h6
{[%clk 0:02:35.7]} 10. Bxf6 {[%clk 0:02:39.3]} 10... Qxf6 {[%clk 0:02:37.6]} 11.
O-O {[%clk 0:02:40.6]} 11... Bxc3 {[%clk 0:02:06.2]} 12. Qxc3 {[%clk 0:02:40.8]}
12... Bg4 {[%clk 0:02:05.4]} 13. e5 {[%clk 0:02:28.8]} 13... dxe5 {[%clk
0:01:53.5]} 14. Nxe5 {[%clk 0:02:29.3]} 14... Bh5 {[%clk 0:01:29]} 15. Nd7
{[%clk 0:02:25.5]} 15... Qxd4 {[%clk 0:01:22.4]} 16. Qxd4 {[%clk 0:02:24.1]}
16... Nxd4 {[%clk 0:01:23.1]} 17. Nxf8 {[%clk 0:02:25.1]} 17... Kxf8 {[%clk
0:01:25]} 18. f3 {[%clk 0:02:20.8]} 18... Nc2 {[%clk 0:01:23.7]} 19. Rac1 {[%clk
0:02:19.3]} 19... Bg6 {[%clk 0:01:11.7]} 20. Bb3 {[%clk 0:02:12.7]} 20... Nd4
{[%clk 0:01:02]} 21. Rxc7 {[%clk 0:02:11.6]} 21... Rb8 {[%clk 0:00:58.2]} 22.
Rd1 {[%clk 0:02:09.4]} 22... Nxb3 {[%clk 0:00:57.6]} 23. axb3 {[%clk 0:02:10.8]}
23... Bf5 {[%clk 0:00:55.5]} 24. b4 {[%clk 0:02:07.9]} 24... Be6 {[%clk
0:00:54.7]} 25. b5 {[%clk 0:02:07.9]} 25... Bc4 {[%clk 0:00:47.7]} 26. Rxc4
{[%clk 0:02:07.5]} 1-0

[Event "*** Titled Tuesday Blitz"]
[Site "Chess.com"]
[Date "2019.06.04"]
[Round "6"]
[White "Jahonas"]
[Black "vladimirdamjanovic"]
[Result "0-1"]
[WhiteElo "2321"]
[BlackElo "2496"]
[TimeControl "180+2"]
[EndTime "14:15:52 PDT"]
[Termination "vladimirdamjanovic won by resignation"]

1. d4 {[%clk 0:03:01.9]} 1... Nf6 {[%clk 0:02:59.4]} 2. c4 {[%clk 0:03:02.5]}
2... c5 {[%clk 0:03:00]} 3. Nf3 {[%clk 0:03:00.2]} 3... cxd4 {[%clk 0:03:00.5]}
4. Nxd4 {[%clk 0:03:01.3]} 4... e5 {[%clk 0:03:00.8]} 5. Nc2 {[%clk 0:03:01.9]}
5... d5 {[%clk 0:03:01.1]} 6. cxd5 {[%clk 0:03:02.7]} 6... Qxd5 {[%clk 0:03:03]}
7. Qxd5 {[%clk 0:03:01.2]} 7... Nxd5 {[%clk 0:03:04]} 8. a3 {[%clk 0:02:55.3]}
8... Bf5 {[%clk 0:03:01.5]} 9. Ne3 {[%clk 0:02:53.9]} 9... Nxe3 {[%clk
0:02:56.2]} 10. Bxe3 {[%clk 0:02:54.2]} 10... Nc6 {[%clk 0:02:56.5]} 11. Nc3
{[%clk 0:02:54.1]} 11... O-O-O {[%clk 0:02:54]} 12. f3 {[%clk 0:02:54.2]} 12...
Nd4 {[%clk 0:02:49.7]} 13. Bxd4 {[%clk 0:02:43.1]} 13... exd4 {[%clk 0:02:50.8]}
14. Nd1 {[%clk 0:02:36.8]} 14... Bd6 {[%clk 0:02:13.9]} 15. Kf2 {[%clk
0:02:00.7]} 15... Rhe8 {[%clk 0:02:03.5]} 16. Rc1+ {[%clk 0:01:49.1]} 16... Kb8
{[%clk 0:02:03.6]} 17. e4 {[%clk 0:01:39.1]} 17... dxe3+ {[%clk 0:01:53.4]} 18.
Nxe3 {[%clk 0:01:31.6]} 18... Bf4 {[%clk 0:01:47.2]} 19. Rc3 {[%clk 0:01:29.2]}
19... Rd2+ {[%clk 0:01:41.9]} 20. Be2 {[%clk 0:01:23.1]} 20... Rxb2 {[%clk
0:01:35.1]} 21. g3 {[%clk 0:01:07.2]} 21... Be5 {[%clk 0:01:26.9]} 0-1